bitfinex/quotes_ETHUSD_20220123
["timestamp","ask_amount","ask_price","bid_price","bid_amount"]
[1642947321408,1.16272897,2477.7,2476.7,0.02]
[1642947321409,4.32568395,2477.6,2476.7,0.02]
[1642947321605,1.01084,2477.5,2476.7,0.02]
[1642947321804,4.26792914,2477.4,2476.7,0.02]
[1642947322009,4.26792914,2477.4,2475.7,7.48]
[1642947322010,1.36279,2477.4,2475.7,7.48]
[1642947322204,3.6521,2477.3,2475.7,7.48]
[1642947322404,0.1615,2477.2,2475.7,7.48]
[1642947322805,7.1883818,2477.3,2475.7,7.48]
[1642947322806,7.3498818,2477.3,2475.7,7.48]
[1642947323010,7.3498818,2477.3,2476.4,1.32674038]
[1642947323205,7.3498818,2477.3,2477.1,0.37291387]
[1642947323206,3.8136,2477.3,2477.1,0.37291387]
[1642947323407,3.8136,2477.3,2475.7,7.48]
[1642947323610,3.5362818,2477.2,2475.7,7.48]
[1642947323813,0.1615,2477.1,2475.7,7.48]
[1642947324007,1.17234,2477.1,2475.7,7.48]
[1642947324909,4.05770531,2477.0,2475.2,0.1613]
[1642947325163,0.1615,2476.9,2475.2,0.1613]
[1642947325361,1.01101,2476.7,2475.2,0.15165806]
[1642947325569,1.01101,2476.7,2476.0,0.37291387]
[1642947325570,3.97418174,2476.6,2476.0,0.37291387]
[1642947325764,0.43789994,2476.6,2476.0,0.37291387]
[1642947326366,0.43789994,2476.6,2475.2,0.15165806]
[1642947326367,26.8862818,2476.5,2475.2,0.15165806]
[1642947326575,26.8862818,2476.5,2474.1,2.03434056]
[1642947326576,26.8862818,2476.5,2474.3,1.10145793]
[1642947326578,0.01255512,2475.3,2474.3,1.10145793]
[1642947326768,0.1615,2475.2,2474.3,1.10145793]
[1642947326966,0.01255512,2475.3,2474.3,1.10145793]
[1642947327365,0.01255512,2475.3,2474.7,1.39873247]
[1642947327564,0.1615,2475.2,2474.4,0.37291387]
[1642947327765,4.13666818,2475.5,2474.4,0.37291387]
[1642947327965,0.20198,2475.4,2474.3,1.10145793]
[1642947328166,0.36358,2475.4,2474.3,1.10145793]
[1642947328366,3.5362818,2475.3,2474.3,1.05145793]
[1642947328567,1.54677974,2474.9,2474.3,1.05145793]
[1642947328798,2.02398,2474.6,2473.1,0.072205]
[1642947329002,0.01644641,2473.8,2473.1,0.072205]
[1642947329198,1.0,2473.9,2473.1,0.072205]
[1642947329199,0.29989997,2473.7,2473.1,0.072205]
[1642947329397,1.0,2473.2,2473.1,0.072205]
[1642947329599,0.29989997,2473.7,2473.3,1.5122049]
[1642947329797,0.29989997,2473.7,2473.2,2.0]
[1642947329798,3.96799997,2473.7,2473.2,2.0]
[1642947330003,0.13819997,2473.7,2473.3,0.37291387]
[1642947330202,0.13819997,2473.7,2473.1,0.072205]
[1642947330203,4.15,2473.4,2473.1,0.072205]
[1642947330505,4.15,2473.4,2471.7,0.1617]
[1642947330506,0.1617,2473.4,2471.7,0.1617]
[1642947330702,0.1617,2473.5,2471.6,3.91289658]
[1642947330903,0.1617,2473.5,2471.8,0.10201]
[1642947330904,7.65,2473.3,2471.8,0.10201]
[1642947331103,0.012775,2473.1,2472.7,1.30041294]
[1642947331302,0.012775,2473.1,2471.8,0.00201]
[1642947331303,3.8617,2473.0,2471.8,0.00201]
[1642947331512,3.8617,2473.0,2471.8,1e-05]
[1642947331706,3.8617,2473.0,2471.3,0.1617]
[1642947331707,0.01284219,2472.5,2471.3,0.1617]
[1642947331905,0.01284219,2472.5,2469.7,18.92583929]
[1642947331906,0.01232564,2471.9,2469.9,0.01269999]
[1642947332106,0.03107711,2471.2,2470.0,1.16690358]
[1642947332306,0.01268138,2471.7,2470.0,1.16690358]
[1642947332307,0.1618,2471.6,2471.3,0.0528838]
[1642947332549,3.9987,2471.7,2470.1,0.1618]
[1642947332846,3.9987,2471.7,2470.6,0.01272028]
[1642947333047,3.7382618,2472.7,2470.6,0.01272028]
[1642947333048,0.1618,2472.6,2470.7,1.11175762]
[1642947333249,4.25257,2472.8,2470.8,0.1618]
[1642947333250,3.96059928,2472.7,2470.8,0.1618]
[1642947333451,3.96059928,2472.7,2471.3,0.01208151]
[1642947333452,3.7858,2472.7,2471.3,0.01208151]
[1642947333651,3.7858,2472.7,2471.4,0.1618]
[1642947333850,3.7858,2472.7,2471.4,0.20562704]
[1642947334253,3.9476,2472.7,2472.1,1.21491143]
[1642947334653,3.7382618,2473.3,2472.1,1.21491143]
[1642947334654,0.1617,2473.2,2472.1,1.21491143]
[1642947334854,0.1617,2473.2,2472.1,1.81491143]
[1642947335055,3.813,2473.7,2472.1,1.81491143]
[1642947335056,3.813,2473.7,2472.6,0.01275055]
[1642947335256,3.813,2473.7,2472.1,1.21491143]
[1642947335257,0.0129485,2473.0,2472.1,1.21491143]
[1642947335454,0.0129485,2473.0,2471.4,0.01]
[1642947335455,0.29989997,2472.9,2471.4,0.01]
[1642947335653,0.01279568,2472.4,2471.4,0.01]
[1642947335853,0.1618,2472.3,2471.4,0.01]
[1642947336317,0.1618,2472.3,2471.5,1.24911242]
[1642947336520,0.29999997,2472.3,2471.5,1.24911242]
[1642947336720,0.29999997,2472.3,2471.4,0.01]
[1642947336920,6.34739997,2472.3,2471.4,0.01]
[1642947337322,3.5362818,2472.2,2471.4,0.01]
[1642947337521,3.5362818,2472.2,2470.1,0.1618]
[1642947337522,0.01246354,2471.7,2470.1,0.1618]
[1642947337824,0.01246354,2471.7,2469.9,0.0123437]
[1642947337825,0.01246354,2471.7,2470.0,0.01]
[1642947337826,0.1618,2471.6,2470.0,0.01]
[1642947338119,0.01222135,2471.7,2470.0,0.01]
[1642947338322,7.65,2471.1,2469.4,0.01405359]
[1642947338522,7.65,2471.1,2469.6,0.00138453]
[1642947338523,0.01219607,2470.0,2469.6,0.00138453]
[1642947338725,0.1618,2469.9,2468.3,29.89258437]
[1642947338921,0.9797,2470.0,2468.3,29.89258437]
[1642947339120,0.1618,2469.9,2468.3,29.89258437]
[1642947339324,0.9797,2470.0,2468.3,0.01216025]
[1642947339524,0.52639997,2470.1,2467.7,5.13256969]
[1642947339721,0.162,2469.9,2467.7,5.13256969]
[1642947340041,0.162,2469.9,2468.3,0.01225258]
[1642947340249,3.67448177,2470.1,2468.3,0.01225258]
[1642947340250,0.13819997,2470.1,2468.3,0.01225258]
[1642947340453,0.1618,2470.0,2468.3,0.01225258]
[1642947340650,0.0123681,2469.7,2467.7,5.03983003]
[1642947340852,0.162,2469.6,2467.7,5.03983003]
[1642947341051,0.20225,2469.5,2467.6,0.02]
[1642947341257,0.01251277,2469.1,2467.6,0.02]
[1642947341455,0.01298783,2468.3,2467.6,0.02]
[1642947341757,0.20225,2468.2,2467.6,0.02]
[1642947341960,0.162,2468.1,2467.6,0.02]
[1642947342152,0.162,2468.7,2467.7,1.30129475]
[1642947342354,0.162,2468.7,2467.8,1.41571336]
[1642947342552,0.162,2468.7,2467.6,0.02]
[1642947342952,0.162,2469.0,2467.6,0.02]
[1642947343358,0.01233862,2468.8,2467.6,0.06361273]
[1642947343555,0.01233862,2468.8,2467.6,0.02]
[1642947343820,0.162,2468.7,2467.6,0.02]
[1642947344013,4.05751,2469.5,2467.7,0.043634]
[1642947344014,0.162,2468.9,2467.7,0.043634]
[1642947344208,0.21433813,2469.3,2467.6,0.02]
[1642947344209,0.20225,2469.1,2467.6,0.02]
[1642947344411,0.162,2469.0,2467.6,0.02]
[1642947344716,0.162,2469.2,2468.9,1.25466613]
[1642947344911,4.61738,2469.6,2468.9,1.25466613]
[1642947344912,0.1618,2469.4,2468.9,1.25466613]
[1642947345112,4.61738,2469.6,2467.9,0.01250939]
[1642947345113,0.1618,2469.5,2467.9,0.01250939]
[1642947345714,3.6033,2469.6,2468.0,0.162]
[1642947346122,2.2198,2470.4,2468.5,0.01284429]
[1642947346123,0.162,2470.3,2468.5,0.01284429]
[1642947346313,1.0,2470.4,2468.7,0.09611229]
[1642947346515,0.1618,2470.6,2469.0,0.08762122]
[1642947346714,0.2778,2471.1,2469.0,0.08762122]
[1642947346715,4.2411,2471.1,2469.2,0.10190069]
[1642947346918,4.2411,2471.1,2468.9,0.1618]
[1642947346919,0.01281525,2469.6,2468.9,0.1618]
[1642947347114,0.13819997,2470.8,2468.9,0.1118]
[1642947347115,0.1618,2470.2,2468.9,0.1118]
[1642947347318,0.1618,2470.7,2469.6,0.03844575]
[1642947347551,0.2778,2471.1,2469.7,1.70342416]
[1642947347751,0.2778,2471.1,2469.7,1.75413187]
[1642947347951,9.3990592,2472.4,2470.3,0.01233775]
[1642947347952,3.6248592,2472.1,2470.3,0.01233775]
[1642947348154,0.01254276,2472.2,2470.4,0.1618]
[1642947348351,0.1618,2472.1,2470.4,0.1618]
[1642947348555,0.1618,2472.1,2471.8,1.44540526]
[1642947348964,0.13819997,2472.7,2471.8,1.44540526]
[1642947348965,0.1618,2472.6,2471.8,1.44540526]
[1642947349157,0.1618,2472.6,2471.1,0.1618]
[1642947349364,0.01215703,2472.2,2471.1,0.1618]
[1642947349562,1.14691091,2471.8,2471.1,0.1618]
[1642947349760,0.1618,2471.7,2471.1,0.1618]
[1642947349961,0.01215703,2472.2,2471.1,0.1618]
[1642947349962,0.1618,2472.1,2471.1,0.1618]
[1642947350358,0.012597,2471.6,2471.1,0.1618]
[1642947350559,0.20225,2472.3,2471.1,0.1618]
[1642947350560,0.1618,2471.5,2471.1,0.1618]
[1642947350762,1.22012648,2471.8,2471.1,0.1618]
[1642947350958,1.32736509,2471.4,2471.1,0.1618]
[1642947351160,0.1618,2472.2,2471.1,0.1618]
[1642947351602,3.6248592,2472.2,2471.1,0.1618]
[1642947351802,0.01235353,2471.2,2469.5,0.1618]
[1642947352005,0.01235353,2471.2,2469.2,0.01221074]
[1642947352006,0.22468726,2471.1,2469.3,0.1618]
[1642947352202,0.0123564,2470.6,2469.0,3.6248592]
[1642947352403,0.1618,2470.5,2468.4,0.17451212]
[1642947352804,7.15342117,2471.0,2469.8,1.23866371]
[1642947352805,0.1618,2471.0,2469.8,1.23866371]
[1642947353107,3.04012,2472.3,2470.2,0.20587244]
[1642947353108,0.1618,2471.2,2470.2,0.20587244]
[1642947353303,0.1618,2471.4,2470.2,0.20587244]
[1642947353805,0.1618,2471.4,2470.9,1.30098474]
[1642947354006,0.1618,2471.7,2470.9,1.30098474]
[1642947354203,0.1618,2471.7,2470.2,0.20587244]
[1642947354204,1.14266498,2471.0,2470.2,0.20587244]
[1642947354405,0.1618,2470.9,2470.2,0.20587244]
[1642947354604,0.20225,2471.7,2470.2,0.20587244]
[1642947354605,0.1746086,2471.6,2470.2,0.20587244]
[1642947355050,0.08866676,2471.5,2470.2,0.20587244]
[1642947355255,0.1618,2471.4,2470.9,1.48193934]
[1642947355449,0.1618,2471.5,2470.9,1.48193934]
[1642947355648,0.1618,2471.7,2470.9,1.48193934]
[1642947355849,0.1618,2472.3,2470.9,1.48193934]
[1642947356451,1.53726145,2472.0,2470.9,1.48193934]
[1642947356751,1.53726145,2472.0,2470.4,0.01200367]
[1642947356752,4.34812058,2471.9,2470.4,0.01200367]
[1642947356953,0.1618,2471.9,2470.4,0.01200367]
[1642947357157,0.1618,2472.1,2470.4,0.01200367]
[1642947357556,0.20225,2472.0,2470.4,0.01200367]
[1642947357861,1.11491136,2471.6,2470.4,0.01200367]
[1642947358056,0.20225,2472.0,2471.6,3.18293408]
[1642947358254,0.01289796,2472.2,2471.6,3.18293408]
[1642947358454,0.13819997,2472.5,2471.6,3.18293408]
[1642947358455,0.1618,2472.1,2471.6,3.18293408]
[1642947358653,0.1618,2472.4,2471.6,3.18293408]
[1642947358899,1.55175465,2471.8,2471.6,3.18293408]
[1642947359306,1.55175465,2471.8,2470.3,3.7847]
[1642947359307,0.08685181,2471.6,2469.6,0.03844575]
[1642947359508,0.08685181,2471.6,2468.0,0.01209879]
[1642947359509,0.01201493,2470.4,2468.0,0.01209879]
[1642947359711,0.51537178,2471.5,2467.7,0.03]
[1642947359712,0.01263249,2469.6,2467.7,0.03]
[1642947359907,1.201,2469.4,2467.7,0.03]
[1642947360206,1.35799999,2470.2,2468.9,1.43688145]
[1642947360207,0.07046124,2469.1,2468.9,1.43688145]
[1642947360413,1.201,2469.2,2468.9,1.43688145]
[1642947361308,3.4485582,2470.7,2468.9,1.43688145]
[1642947361513,4.1358,2470.8,2469.1,0.01201327]
[1642947361707,7.4225582,2470.8,2469.2,0.1618]
[1642947361908,7.4225582,2470.8,2469.1,0.01201327]
[1642947361909,0.1618,2470.7,2469.1,0.01201327]
[1642947362307,0.1618,2470.7,2470.1,1.08771986]
[1642947362745,0.1618,2471.0,2470.1,1.08771986]
[1642947363351,0.1618,2471.0,2470.1,1.03771986]
[1642947363751,0.1618,2471.0,2470.2,2.11599997]
[1642947363948,0.13819997,2471.1,2470.2,2.11599997]
[1642947364449,0.13819997,2471.1,2470.2,9.997e-05]
[1642947364450,0.34044997,2471.1,2470.2,9.997e-05]
[1642947364652,0.01296775,2470.6,2470.2,9.997e-05]
[1642947364851,0.1618,2470.5,2470.2,9.997e-05]
[1642947366152,0.1618,2470.7,2470.2,9.997e-05]
[1642947366796,0.1618,2470.7,2470.2,1.15693404]
[1642947366996,1.2362499,2470.5,2470.2,9.997e-05]
[1642947367198,0.1618,2470.7,2470.2,9.997e-05]
[1642947367399,0.20225,2470.6,2470.2,9.997e-05]
[1642947367602,0.20225,2470.6,2468.6,0.02]
[1642947367603,0.01207344,2470.4,2468.6,0.02]
[1642947367804,0.01204514,2469.8,2468.6,0.02]
[1642947368003,0.46530082,2469.8,2468.6,0.02]
[1642947368199,10.6039955,2469.7,2468.6,0.02]
[1642947368399,1.46188704,2469.0,2468.6,0.02]
[1642947368799,5.799,2469.7,2468.6,0.02]
[1642947369202,4.08375101,2469.6,2468.6,0.02]
[1642947369402,0.20225,2469.5,2468.6,0.02]
[1642947369602,0.36425,2469.5,2468.6,0.02]
[1642947369801,4.18940863,2469.4,2468.6,0.02]
[1642947370054,0.162,2469.3,2468.6,0.02]
[1642947370452,0.162,2469.4,2468.6,0.02]
[1642947370952,1.17598,2469.4,2468.6,0.02]
[1642947371553,1.36244913,2468.9,2468.6,0.02]
[1642947372056,2.29024913,2468.9,2468.6,0.02]
[1642947372256,7.85225,2468.7,2468.6,0.02]
[1642947372455,8.01425,2468.7,2468.6,0.02]
[1642947373262,0.162,2468.7,2468.6,0.02]
[1642947373914,0.155,2468.7,2468.6,0.02]
[1642947374112,0.20225,2469.1,2468.6,0.02]
[1642947374113,0.162,2469.0,2468.6,0.02]
[1642947375010,1.49068146,2468.9,2468.6,0.02]
[1642947375616,0.162,2469.2,2468.6,0.02]
[1642947376520,0.162,2469.3,2468.6,0.02]
[1642947376722,0.20225,2469.2,2468.6,0.02]
[1642947377018,0.162,2469.1,2468.6,0.02]
[1642947377220,0.13819997,2469.4,2468.6,0.02]
[1642947377221,0.36425,2469.3,2468.6,0.02]
[1642947377417,0.162,2469.3,2468.6,0.02]
[1642947377645,0.162,2469.3,2468.8,1.52747917]
[1642947377843,0.162,2469.3,2468.6,0.02]
[1642947377844,0.162,2469.3,2469.2,1.46784752]
[1642947378049,0.1618,2469.6,2469.4,0.9005999]
[1642947378246,0.1618,2469.8,2469.4,0.9005999]
[1642947378448,1.201,2469.6,2468.6,0.02]
[1642947378652,0.01299988,2468.7,2467.5,2.02584296]
[1642947378847,0.01261237,2468.1,2466.5,1.51938222]
[1642947379048,1.201,2467.3,2466.2,1.51938222]
[1642947379255,1.201,2467.3,2466.3,3.44774308]
[1642947379256,1.201,2467.1,2466.3,3.44774308]
[1642947379453,1.201,2467.1,2466.0,6.7306]
[1642947379454,1.201,2466.7,2466.0,6.7306]
[1642947379653,0.26208621,2466.5,2466.0,6.7306]
[1642947379854,0.15145645,2466.5,2466.0,6.7306]
[1642947380054,0.15145645,2466.2,2465.8,0.02]
[1642947380356,0.20889998,2466.1,2465.8,0.02]
[1642947380551,1.2645469,2465.9,2465.8,0.02]
[1642947380754,1.6094469,2465.9,2465.8,0.02]
[1642947380960,0.35415645,2465.9,2465.8,0.02]
[1642947381152,0.10145645,2465.9,2465.8,0.02]
[1642947382006,0.10145645,2465.9,2465.8,1.0805114]
[1642947382407,0.10145645,2465.9,2465.8,0.02]
[1642947382804,0.10145645,2465.9,2465.6,1.36167323]
[1642947383410,1.01527,2466.5,2465.9,0.20291289]
[1642947383411,1.25750393,2466.5,2465.9,0.20291289]
[1642947383616,6.1027,2466.9,2466.0,1.40034473]
[1642947383809,0.2027,2466.7,2466.0,1.40034473]
[1642947384008,1.21784,2466.7,2466.0,1.40034473]
[1642947384407,1.21784,2466.7,2465.9,0.20291289]
[1642947384612,0.162,2466.6,2465.9,0.20291289]
[1642947384809,0.2027,2466.7,2465.9,0.20291289]
[1642947385250,0.162,2466.6,2465.9,0.20291289]
[1642947385550,0.2027,2466.7,2465.9,0.20291289]
[1642947385751,0.2179,2466.7,2465.9,0.20291289]
[1642947385958,7.65,2466.4,2465.1,0.02129757]
[1642947386162,7.65,2466.4,2465.1,0.02]
[1642947386163,0.01267539,2465.9,2465.1,0.02]
[1642947386353,0.3649,2465.8,2465.1,0.02]
[1642947386553,0.3649,2465.8,2464.7,0.00129757]
[1642947386554,5.05,2465.7,2464.9,1.33630548]
[1642947386753,1.01568,2465.5,2464.9,1.33630548]
[1642947386954,5.0,2465.1,2464.9,0.78630548]
[1642947387556,5.0,2465.1,2464.3,0.5366]
[1642947387756,0.2027,2465.0,2464.3,0.5366]
[1642947387954,0.2027,2465.0,2464.3,0.09488798]
[1642947388158,5.1622,2465.1,2464.8,1.0605114]
[1642947388159,5.0,2465.1,2464.8,1.0605114]
[1642947388556,0.1622,2465.9,2464.9,1.09841439]
[1642947388814,7.77595,2466.2,2464.9,1.09841439]
[1642947388815,5.7451,2466.2,2464.9,1.09841439]
[1642947388996,5.7451,2466.2,2464.9,1.30109439]
[1642947389199,1.0,2466.6,2465.0,0.0184862]
[1642947389395,1.0,2466.6,2465.2,0.06353346]
[1642947389595,5.15,2466.5,2466.4,1.28731793]
[1642947390095,0.0152,2466.7,2466.4,1.28731793]
[1642947391099,0.0128945,2467.7,2466.6,4.0]
[1642947391309,0.162,2468.1,2466.7,0.06837287]
[1642947391504,5.9147,2468.6,2466.7,5.10764569]
[1642947391703,0.162,2468.3,2466.9,1.55456923]
[1642947391907,0.162,2469.2,2468.7,1.36808713]
[1642947392103,0.2027,2469.1,2468.8,0.02466746]
[1642947392301,0.2027,2469.1,2468.7,1.36808713]
[1642947392302,0.162,2469.2,2468.7,1.36808713]
[1642947392549,0.01299997,2469.3,2468.7,1.36808713]
[1642947392550,0.17499997,2469.3,2468.7,1.36808713]
[1642947392749,0.01299997,2469.3,2468.7,1.36808713]
[1642947393753,0.01299997,2469.3,2468.1,0.13819997]
[1642947393959,0.01299997,2469.3,2467.7,0.20397757]
[1642947393960,0.162,2469.2,2467.7,0.00129757]
[1642947394154,0.01287161,2468.7,2467.5,4.3566]
[1642947394354,1.17942697,2468.3,2467.5,4.3566]
[1642947394755,1.38212697,2468.3,2467.8,1.10129746]
[1642947394962,1.16909346,2467.9,2466.7,0.00129757]
[1642947395157,1.16909346,2467.9,2466.5,4.5631]
[1642947395158,0.162,2467.8,2466.5,4.5631]
[1642947395554,0.162,2467.8,2466.6,0.20268]
[1642947395757,0.01267175,2468.1,2466.6,0.20268]
[1642947395758,0.17467175,2468.1,2466.6,0.20268]
[1642947395959,0.17467175,2468.1,2467.4,1.16027531]
[1642947396155,0.17467175,2468.1,2466.6,0.20397757]
[1642947396432,1.35495296,2467.6,2466.6,0.20397757]
[1642947396829,0.17467175,2468.1,2466.6,0.20268]
[1642947397230,0.12467175,2468.1,2467.3,0.01225052]
[1642947397434,0.162,2468.3,2466.6,0.21489719]
[1642947397730,7.65,2467.9,2465.5,5.056012]
[1642947397934,0.01223054,2466.7,2465.2,1.3263]
[1642947398135,1.39096823,2466.6,2465.2,1.3263]
[1642947398332,2.73677898,2466.6,2465.2,1.3263]
[1642947398533,1.0151431,2467.0,2465.3,7.15]
[1642947398534,0.0092467,2466.5,2465.3,7.15]
[1642947398733,0.20271,2467.4,2465.6,0.01228304]
[1642947398932,0.1621,2467.3,2465.6,0.01228304]
[1642947399136,0.20271,2467.2,2465.6,0.01228304]
[1642947399330,0.20271,2467.2,2465.2,1.3263]
[1642947399331,0.162,2467.1,2465.2,1.3263]
[1642947399535,1.08928001,2466.7,2465.2,1.3263]
[1642947399739,0.1622,2466.6,2465.2,1.3263]
[1642947399936,0.36491,2466.6,2465.2,1.3263]
[1642947400151,1.52682201,2466.4,2465.2,1.3263]
[1642947400452,0.1622,2466.3,2465.2,1.3263]
[1642947400654,0.1622,2466.3,2465.7,1.22385588]
[1642947400852,0.1622,2466.4,2465.7,1.22385588]
[1642947401252,0.34090997,2466.8,2465.7,1.22385588]
[1642947401253,0.1622,2466.7,2465.7,1.22385588]
[1642947401856,0.1622,2466.7,2465.8,0.73786322]
[1642947402057,0.1622,2466.7,2466.6,1.45679744]
[1642947402258,5.26653789,2467.6,2466.6,1.45679744]
[1642947402259,0.20271,2467.4,2466.6,1.45679744]
[1642947402457,0.162,2467.3,2466.6,1.45679744]
[1642947403061,0.162,2467.3,2467.1,1.2089238]
[1642947403258,0.162,2467.3,2465.9,4.0725]
[1642947403464,1.38899222,2467.4,2465.9,4.27521]
[1642947403465,1.18628222,2467.4,2465.9,4.27521]
[1642947403660,1.18628222,2467.4,2465.9,4.0725]
[1642947403907,0.36471,2467.5,2465.9,4.27521]
[1642947403908,0.162,2467.5,2465.9,4.27521]
[1642947404109,0.162,2467.5,2465.9,4.0725]
[1642947404110,3.88793508,2467.5,2465.9,4.0725]
[1642947404318,1.24372592,2467.2,2466.4,1.30921178]
[1642947404512,0.36471,2467.1,2466.4,1.30921178]
[1642947405109,0.36471,2467.1,2466.5,0.73786322]
[1642947405307,0.36471,2467.1,2466.4,1.30921178]
[1642947405709,0.36471,2467.1,2466.8,1.1458687]
[1642947405912,0.20271,2466.9,2465.4,0.01272927]
[1642947406109,0.20271,2466.9,2465.1,3.5102912]
[1642947406110,0.0125464,2466.9,2465.1,3.5102912]
[1642947406310,0.0125464,2466.9,2466.4,0.73786322]
[1642947406709,0.20271,2467.3,2466.8,1.13112395]
[1642947406710,0.162,2467.2,2466.8,1.13112395]
[1642947406913,0.162,2467.2,2465.0,31.49332853]
[1642947406914,0.01241768,2466.9,2465.2,1.0148283]
[1642947407114,0.01241768,2466.9,2465.3,3.44874885]
[1642947407312,0.01241768,2466.9,2464.6,2.02584296]
[1642947407313,0.01273121,2466.1,2464.4,5.17312328]
[1642947407567,0.36471,2466.8,2463.8,3.05107098]
[1642947407568,0.36471,2466.8,2464.1,0.02]
[1642947407569,0.01273482,2465.8,2464.1,0.02]
[1642947407762,0.17724758,2465.7,2464.1,0.02]
[1642947407968,0.01273482,2465.8,2464.3,0.73786322]
[1642947407969,0.20279,2465.6,2464.3,0.73786322]
[1642947408564,0.01273482,2465.8,2464.3,0.73786322]
[1642947408768,0.01273482,2465.8,2463.5,1.51938222]
[1642947408769,0.01292857,2465.0,2463.0,4.01955073]
[1642947408971,0.01292857,2465.0,2462.7,0.02]
[1642947408972,1.01622,2464.5,2462.7,0.02]
[1642947409270,0.01244514,2463.9,2462.7,0.02]
[1642947409472,0.01244514,2463.9,2461.8,50.05]
[1642947409473,0.0143728,2463.7,2461.8,50.05]
[1642947409668,0.0040316,2463.5,2462.1,3.91016377]
[1642947409868,0.0040316,2463.5,2461.8,48.85]
[1642947409869,5.3,2463.3,2461.8,48.85]
[1642947410071,0.36509,2463.2,2461.8,48.748]
[1642947410266,0.36509,2463.2,2462.7,1.390161]
[1642947410267,1.52739,2463.2,2462.7,1.390161]
[1642947410467,0.52739,2463.2,2462.0,3.56254522]
[1642947410669,0.52739,2463.2,2462.2,3.86016377]
[1642947410670,0.3246,2463.2,2462.2,3.86016377]
[1642947410871,0.20279,2463.4,2463.2,0.81149999]
[1642947411069,0.1623,2463.5,2463.2,0.81149999]
[1642947411302,0.20279,2463.3,2462.3,1.3851434]
[1642947411511,1.20807341,2463.0,2462.1,1.3827803]
[1642947411705,0.20279,2462.9,2461.8,48.748]
[1642947411907,0.1623,2462.8,2461.8,48.748]
[1642947412109,0.20279,2462.7,2461.8,48.748]
[1642947412306,0.1623,2462.6,2461.8,48.748]
[1642947412507,0.20279,2462.5,2462.4,1.41974747]
[1642947412707,0.36509,2462.5,2461.8,48.748]
[1642947412908,0.1623,2462.4,2461.8,48.748]
[1642947413107,0.20279,2462.3,2461.8,48.748]
[1642947413308,0.1623,2462.2,2461.8,48.748]
[1642947413507,0.20279,2462.3,2461.8,48.748]
[1642947413910,0.20279,2462.3,2461.8,38.61015075]
[1642947414111,0.20279,2462.3,2461.6,0.02]
[1642947414112,0.01294702,2461.9,2461.6,0.02]
[1642947414310,0.20279,2461.7,2461.6,0.02]
[1642947414510,0.20279,2462.1,2461.6,3.88016377]
[1642947414712,0.21567117,2462.6,2462.3,1.35389235]
[1642947414909,0.20279,2462.6,2461.6,0.02]
[1642947415364,1.44106301,2462.4,2461.8,1.27119926]
[1642947415567,0.1623,2462.3,2461.6,0.02]
[1642947415967,0.20279,2462.2,2461.6,0.02]
[1642947416168,1.21993,2462.2,2461.6,0.02]
[1642947416364,0.17439715,2462.1,2461.6,0.02]
[1642947416567,0.17439715,2462.1,2461.1,1.3887276]
[1642947416568,1.41186191,2461.7,2461.1,1.3887276]
[1642947416869,1.41186191,2461.7,2460.4,4.7789]
[1642947416870,0.189317,2461.6,2460.4,4.7789]
[1642947417072,0.01271333,2461.4,2460.4,4.7789]
[1642947417275,0.351817,2461.3,2460.3,1.29191027]
[1642947417568,0.351817,2461.3,2460.0,5.14694615]
[1642947417768,0.01211632,2461.4,2460.9,1.55927753]
[1642947418167,0.01272672,2461.3,2461.0,0.20333]
[1642947418370,20.35323,2463.1,2461.2,4.06349377]
[1642947418371,0.20981098,2462.9,2461.2,4.06349377]
[1642947418571,0.0120084,2463.7,2461.8,0.01209874]
[1642947418805,0.13819997,2463.6,2461.9,0.04546954]
[1642947419005,0.01229024,2463.1,2461.9,0.04546954]
[1642947419202,0.08067,2463.0,2461.9,5.07817863]
[1642947419403,0.08067,2463.0,2461.2,3.81016377]
[1642947419607,0.08067,2463.0,2460.5,3.81016377]
[1642947419608,0.01230774,2461.8,2460.5,3.81016377]
[1642947419810,0.01230774,2461.8,2460.2,3.81016377]
[1642947420105,3.05159,2462.7,2461.0,3.81016377]
[1642947420306,0.01250084,2462.5,2461.0,3.81016377]
[1642947420505,1.38593837,2461.9,2460.9,3.81016377]
[1642947420708,0.01258617,2461.9,2461.2,1.48930024]
[1642947421308,0.01258617,2461.9,2460.1,0.00129824]
[1642947421512,0.01258617,2461.9,2460.7,3.76016377]
[1642947421513,0.0806,2461.8,2460.7,3.76016377]
[1642947421711,0.01258617,2461.9,2460.4,1.22587827]
[1642947421712,1.09685296,2461.0,2460.4,1.22587827]
[1642947421911,5.91870104,2461.9,2460.9,3.76016377]
[1642947422210,0.07979,2462.5,2461.3,3.76016377]
[1642947422413,0.01268993,2462.3,2461.3,1.19502556]
[1642947422660,0.07951,2462.2,2461.3,1.19502556]
[1642947422861,0.13819997,2462.6,2462.2,1.22587827]
[1642947423059,2.0331781,2464.1,2462.5,3.76016377]
[1642947423060,0.01267148,2463.3,2462.5,3.76016377]
[1642947423264,52.44760657,2463.4,2462.9,3.76016377]
[1642947423462,52.44760657,2463.4,2463.0,1.33865847]
[1642947423861,52.44760657,2463.4,2463.0,1.28865847]
[1642947424064,52.44760657,2463.4,2463.1,3.76016377]
[1642947424264,0.01285138,2463.8,2463.1,3.76016377]
[1642947424465,0.01285138,2463.8,2463.2,0.05231213]
[1642947424664,0.08186,2463.5,2462.3,4.4416]
[1642947425065,1.44318761,2463.4,2462.5,3.76016377]
[1642947425263,0.01244469,2463.2,2462.3,4.4416]
[1642947425463,0.01244469,2463.2,2463.0,1.2069695]
[1642947425863,0.01244469,2463.2,2463.0,0.42020076]
[1642947426069,0.08186,2463.5,2463.0,0.42020076]
[1642947426316,0.08186,2463.5,2463.3,3.76016377]
[1642947426511,1.06125043,2464.9,2463.3,3.76016377]
[1642947426711,1.41924437,2464.6,2463.8,1.29914026]
[1642947426908,0.01268656,2464.8,2463.8,1.29914026]
[1642947427207,0.01268656,2464.8,2464.0,3.76016377]
[1642947427409,1.42374819,2464.5,2464.0,3.76016377]
[1642947427614,0.01268656,2464.8,2464.4,3.76016377]